fUSD/lending_fUSD_20250610
["ID","MTS","AMOUNT","RATE_DAILY","PERIOD"]
[365182297,1749522632397,-490.0,0.00016438,2]
[365182298,1749522632407,-91.91843001,0.00016438,2]
[365182316,1749522637435,-161.65909453,0.00016437,2]
[365182318,1749522637445,-59.08156999,0.00016438,2]
[365182319,1749522637455,-154.995989,0.00016438,2]
[365182320,1749522637685,-487.2348777,0.00016438,2]
[365182321,1749522637695,-242.6879989,0.00016438,2]
[365182322,1749522637705,-441.82291361,0.00016438,2]
[365182323,1749522637715,-153.487497,0.00016438,2]
[365182324,1749522637725,-251.04097272,0.00016438,2]
[365182325,1749522637735,-490.0,0.00016438,2]
[365182326,1749522637744,-326.3958959,0.00016438,2]
[365182327,1749522637754,-490.0,0.00016438,2]
[365182328,1749522637764,-490.0,0.00016438,2]
[365182329,1749522637773,-431.90775564,0.00016438,2]
[365182330,1749522637799,-64.77204686,0.00016438,2]
[365182331,1749522637808,-349.15319989,0.00016438,2]
[365182332,1749522637820,-140.84680011,0.00016438,2]
[365182333,1749522637830,-250.0,0.00016438,2]
[365182334,1749522637843,-432.46633337,0.00016438,2]
[365182335,1749522637852,-490.0,0.00016438,2]
[365182336,1749522637862,-154.888178,0.00016438,2]
[365182337,1749522637871,-151.0,0.00016438,2]
[365182338,1749522637881,-485.01817363,0.00016438,2]
[365182340,1749522637890,-151.0,0.00016438,2]
[365182342,1749522637900,-151.0,0.00016438,2]
[365182345,1749522637910,-476.56629994,0.00016438,2]
[365182346,1749522637920,-151.0,0.00016438,2]
[365182348,1749522637930,-151.0,0.00016438,2]
[365182350,1749522637939,-17.3885044,0.00016438,2]
[365182352,1749522637972,-133.6114956,0.00016438,2]
[365182353,1749522637981,-151.0,0.00016438,2]
[365182354,1749522637991,-104.95870192,0.00016438,2]
[365182360,1749522640040,-46.04129808,0.00016438,2]
[365182361,1749522640050,-490.0,0.00016438,2]
[365182362,1749522640059,-159.17882277,0.00016438,2]
[365182363,1749522640129,-83.0710623,0.00016438,2]
[365182364,1749522640139,-484.38188816,0.00016438,2]
[365182365,1749522640149,-490.0,0.00016438,2]
[365182366,1749522640159,-486.82183108,0.00016438,2]
[365182367,1749522640169,-486.2047386,0.00016438,2]
[365182368,1749522640178,-482.03137494,0.00016438,2]
[365182369,1749522640188,-122.95570672,0.00016438,2]
[365182419,1749522649883,11773.82,0.00015533,2]
[365182420,1749522659493,704.0,0.0002465,120]
[365182421,1749522825930,200.0,0.000159,5]
[365182422,1749522828027,500.0,0.000167,6]
[365182423,1749522830142,700.0,0.000168,6]
[365182424,1749522832273,1000.0,0.000169,6]
[365182425,1749522839844,980.0,0.0002465,120]
[365182426,1749522851846,432.0,0.00015653,2]
[365182427,1749522879593,30000.0,0.0001705,10]
[365182428,1749522956889,1000.0,0.0001547,2]
[365182429,1749522971303,250.2,0.00013699,2]
[365182431,1749523003545,474.0,0.00024658,120]
[365182432,1749523099503,295.0,0.0001597,2]
[365182433,1749523099931,295.0,0.000157,2]
[365182434,1749523100258,295.0,0.0001543,2]
[365182435,1749523100601,295.0,0.0001517,2]
[365182436,1749523100968,295.0,0.000149,2]
[365182437,1749523192295,1333.0,0.00023964,120]
[365182438,1749523211871,428.0,0.00015101,2]
[365182439,1749523212150,428.0,0.00015554,2]
[365182440,1749523213560,-279.49170955,0.00016008,3]
[365182441,1749523215527,-148.50829045,0.00016008,3]
[365182442,1749523315429,477.76,0.00015443,2]
[365182443,1749523333653,166.27,0.00015914,2]
[365182444,1749523373613,150.0,0.00015439,7]
[365182445,1749523422023,201.0,0.00015101,2]
[365182446,1749523428509,761.14,0.00013514,2]
[365182447,1749523428738,761.14,0.00015778,2]
[365182448,1749523440536,200.0,0.000159,5]
[365182449,1749523442626,500.0,0.000168,6]
[365182450,1749523444721,700.0,0.000169,6]
[365182451,1749523482080,204.0,0.00015101,2]
[365182452,1749523511211,3021.0,0.0001589,2]
[365182453,1749523511321,1697.42,0.00015437,2]
[365182454,1749523520577,703.63,0.00015434,2]
[365182455,1749523571759,415.0,0.00015461,2]
[365182456,1749523572050,415.0,0.00015911,2]
[365182457,1749523600968,254.0,0.0001589,2]
[365182458,1749523614259,449.93,0.00015422,2]
[365182459,1749523640051,900.0,0.000159,5]
[365182460,1749523641791,1900.0,0.000167,6]
[365182461,1749523643900,2900.0,0.000168,6]
[365182462,1749523646015,3900.0,0.000169,6]
[365182463,1749523658307,21544.18,0.00015403,2]
[365182464,1749523661370,203.0,0.00015461,2]
[365182465,1749523814281,23900.0,0.00015392,2]
[365182466,1749523831566,-600.0,0.00016204,4]
[365182467,1749523831576,-250.0,0.00016213,2]
[365182468,1749523831585,-300.0,0.00016213,2]
[365182469,1749523831595,-295.0,0.0001624,2]
[365182470,1749523831604,-300.0,0.00016246,2]
[365182471,1749523831614,-1957.856,0.00016273,2]
[365182472,1749523831623,-207.4,0.00016273,2]
[365182473,1749523831632,-1200.0,0.0001628,2]
[365182474,1749523831642,-300.0,0.00016281,2]
[365182475,1749523831652,-500.0,0.00016282,2]
[365182476,1749523831662,-500.0,0.00016282,2]
[365182477,1749523831672,-500.0,0.00016282,2]
[365182478,1749523831681,-300.0,0.00016282,2]
[365182479,1749523831690,-500.0,0.00016282,2]
[365182480,1749523831700,-500.0,0.00016282,2]
[365182481,1749523831710,-507.22627236,0.00016282,2]
[365182482,1749523831719,-500.0,0.00016282,2]
[365182483,1749523831729,-205.85380173,0.00016282,2]
[365182484,1749523831738,-500.0,0.00016282,2]
[365182485,1749523831748,-500.0,0.00016282,2]
[365182486,1749523831757,-330.77510558,0.00016282,2]
[365182487,1749523831766,-500.0,0.00016282,2]
[365182488,1749523831774,-422.23400192,0.00016282,2]
[365182489,1749523831783,-500.0,0.00016282,2]
[365182490,1749523831793,-500.0,0.00016282,2]
[365182491,1749523831802,-605.65091699,0.00016282,2]
[365182492,1749523831811,-500.0,0.00016282,2]
[365182493,1749523831820,-500.0,0.00016282,2]
[365182494,1749523831830,-500.0,0.00016282,2]
[365182495,1749523831839,-500.0,0.00016282,2]
[365182496,1749523831849,-500.0,0.00016282,2]
[365182497,1749523831858,-500.0,0.00016282,2]
[365182498,1749523831867,-500.0,0.00016282,2]
[365182499,1749523831877,-36518.80615625,0.00016283,2]
[365182500,1749523831886,-500.0,0.00016307,2]
[365182501,1749523831895,-170.49396156,0.00016318,2]
[365182502,1749523831905,-335.55599999,0.0001632,2]
[365182503,1749523831914,-335.55599999,0.00016324,2]
[365182504,1749523831923,-159.72137022,0.00016328,2]
[365182505,1749523831933,-504.2305437,0.00016328,2]
[365182506,1749523831942,-500.0,0.00016328,2]
[365182507,1749523831953,-1000.0,0.00016328,2]
[365182508,1749523831962,-1675.2394,0.00016328,2]
[365182509,1749523831972,-1000.0,0.00016328,2]
[365182510,1749523831982,-2030.296672,0.00016328,2]
[365182511,1749523831991,-4662.38988203,0.00016338,2]
[365182513,1749523832000,-328.82630249,0.00016338,2]
[365182515,1749523832010,-1592.4418,0.00016338,2]
[365182517,1749523832019,-5000.0,0.00016338,2]
[365182518,1749523832028,-174.92786421,0.00016352,2]
[365182519,1749523832037,-335.55599999,0.00016353,2]
[365182520,1749523832045,-415.0,0.00016361,3]
[365182521,1749523832054,-2105.41764886,0.00016383,2]
[365182522,1749523832063,-1013.920208,0.00016384,2]
[365182523,1749523832072,-265.28,0.00016418,2]
[365182524,1749523832081,-265.28,0.00016418,2]
[365182525,1749523832090,-265.28,0.00016418,2]
[365182526,1749523832100,-265.28,0.00016419,2]
[365182527,1749523832110,-328.82630248,0.0001642,2]
[365182528,1749523832119,-351.81281768,0.00016422,2]
[365182529,1749523832128,-265.28,0.00016428,2]
[365182530,1749523832137,-47755.8135426,0.00016428,2]
[365182531,1749523832149,-128801.71373499,0.00016428,2]
[365182532,1749523832160,-1029.29698763,0.00016428,2]
[365182533,1749523832171,-675.68267282,0.00016428,2]
[365182534,1749523832182,-1328.43559685,0.00016428,2]
[365182535,1749523832196,-432.32632991,0.00016428,2]
[365182536,1749523832212,-1104.21156385,0.00016428,2]
[365182537,1749523832223,-454.40958204,0.00016428,2]
[365182540,1749523837477,-960.86646857,0.00016428,2]
[365182541,1749523837532,-67457.24352074,0.00016428,2]
[365182542,1749523837542,-163.45876627,0.00016428,2]
[365182543,1749523837552,-151.0,0.00016428,2]
[365182545,1749523837561,-1000.0,0.00016428,2]
[365182546,1749523837571,-1929.670991,0.00016429,2]
[365182547,1749523837580,-18217.5264999,0.00016429,2]
[365182548,1749523837589,-18278.3124999,0.00016429,2]
[365182549,1749523837599,-18278.3124999,0.00016429,2]
[365182550,1749523837607,-6528.8777265,0.00016429,2]
[365182551,1749523837617,-1196.166,0.00016437,2]
[365182552,1749523837626,-490.0,0.00016438,2]
[365182553,1749523837635,-422.61201815,0.00016438,2]
[365182554,1749523837644,-151.0,0.00016438,2]
[365182555,1749523837653,-151.0,0.00016438,2]
[365182556,1749523837662,-151.0,0.00016438,2]
[365182557,1749523837672,-151.0,0.00016438,2]
[365182558,1749523837681,-151.0,0.00016438,2]
[365182559,1749523837690,-159.502619,0.00016438,2]
[365182560,1749523837699,-151.0,0.00016438,2]
[365182561,1749523837708,-151.0,0.00016438,2]
[365182562,1749523837717,-151.0,0.00016438,2]
[365182563,1749523837727,-161.99041,0.00016438,2]
[365182564,1749523837737,-152.639182,0.00016438,2]
[365182565,1749523837746,-151.0,0.00016438,2]
[365182566,1749523837756,-151.0,0.00016438,2]
[365182567,1749523837765,-481.47792597,0.00016438,2]
[365182568,1749523837774,-463.15234679,0.00016438,2]
[365182569,1749523837783,-462.76611172,0.00016438,2]
[365182570,1749523837793,-465.11547669,0.00016438,2]
[365182571,1749523837803,-460.0,0.00016438,2]
[365182572,1749523837814,-151.0,0.00016438,2]
[365182573,1749523837823,-151.0,0.00016438,2]
[365182574,1749523837833,-151.0,0.00016438,2]
[365182575,1749523837843,-151.0,0.00016438,2]
[365182576,1749523837852,-202.50631,0.00016438,2]
[365182577,1749523837861,-170.206538,0.00016438,2]
[365182578,1749523837871,-151.0,0.00016438,2]
[365182579,1749523837880,-152.592355,0.00016438,2]
[365182580,1749523837889,-151.0,0.00016438,2]
[365182581,1749523837898,-151.0,0.00016438,2]
[365182582,1749523837907,-209.695193,0.00016438,2]
[365182583,1749523837917,-470.0,0.00016438,2]
[365182584,1749523837927,-471.88087978,0.00016438,2]
[365182585,1749523837936,-151.0,0.00016438,2]
[365182586,1749523837945,-508.34345056,0.00016438,2]
[365182587,1749523837955,-490.0,0.00016438,2]
[365182588,1749523837964,-151.0,0.00016438,2]
[365182589,1749523837973,-151.0,0.00016438,2]
[365182590,1749523837982,-151.0,0.00016438,2]
[365182591,1749523837991,-153.026292,0.00016438,2]
[365182592,1749523838000,-151.0,0.00016438,2]
[365182593,1749523838010,-151.0,0.00016438,2]
[365182594,1749523838023,-151.0,0.00016438,2]
[365182595,1749523838032,-151.0,0.00016438,2]
[365182596,1749523838041,-151.0,0.00016438,2]
[365182597,1749523838050,-160.979626,0.00016438,2]
[365182598,1749523838059,-151.0,0.00016438,2]
[365182599,1749523838069,-151.0,0.00016438,2]
[365182600,1749523838078,-151.0,0.00016438,2]
[365182601,1749523838087,-151.0,0.00016438,2]
[365182602,1749523838095,-151.0,0.00016438,2]
[365182603,1749523838106,-287.984638,0.00016438,2]
[365182604,1749523838119,-153.55329,0.00016438,2]
[365182606,1749523838128,-490.0,0.00016438,2]
[365182608,1749523838137,-450.54671958,0.00016438,2]
[365182609,1749523838343,-490.0,0.00016438,2]
[365182610,1749523838356,-151.0,0.00016438,2]
[365182611,1749523838366,-151.0,0.00016438,2]
[365182612,1749523838375,-151.0,0.00016438,2]
[365182613,1749523838385,-151.0,0.00016438,2]
[365182614,1749523838394,-151.0,0.00016438,2]
[365182615,1749523838403,-219.19200486,0.00016438,2]
[365182616,1749523838412,-490.0,0.00016438,2]
[365182617,1749523838421,-490.0,0.00016438,2]
[365182618,1749523838431,-151.0,0.00016438,2]
[365182619,1749523838440,-151.0,0.00016438,2]
[365182620,1749523838449,-151.0,0.00016438,2]
[365182621,1749523838459,-490.0,0.00016438,2]
[365182622,1749523838468,-218.90436,0.00016438,2]
[365182623,1749523838478,-490.0,0.00016438,2]
[365182624,1749523838487,-509.58498618,0.00016438,2]
[365182625,1749523838497,-305.35498862,0.00016438,2]
[365182626,1749523838507,-490.0,0.00016438,2]
[365182627,1749523838516,-151.0,0.00016438,2]
[365182628,1749523838525,-198.847595,0.00016438,2]
[365182629,1749523838535,-490.0,0.00016438,2]
[365182630,1749523838544,-154.795764,0.00016438,2]
[365182631,1749523838554,-490.0,0.00016438,2]
[365182632,1749523838563,-490.0,0.00016438,2]
[365182633,1749523838573,-507.81766485,0.00016438,2]
[365182634,1749523838585,-490.0,0.00016438,2]
[365182635,1749523838594,-388.7653011,0.00016438,2]
[365182636,1749523838604,-490.0,0.00016438,2]
[365182637,1749523838613,-447.79122271,0.00016438,2]
[365182638,1749523838623,-278.7449398,0.00016438,2]
[365182639,1749523838632,-490.0,0.00016438,2]
[365182640,1749523838642,-472.36422765,0.00016438,2]
[365182641,1749523838651,-490.0,0.00016438,2]
[365182642,1749523838661,-452.02545932,0.00016438,2]
[365182643,1749523838671,-494.00630342,0.00016438,2]
[365182644,1749523838681,-456.27899424,0.00016438,2]
[365182645,1749523838690,-490.0,0.00016438,2]
[365182646,1749523838699,-486.533142,0.00016438,2]
[365182647,1749523838709,-490.0,0.00016438,2]
[365182648,1749523838718,-490.0,0.00016438,2]
[365182649,1749523838727,-477.95327778,0.00016438,2]
[365182650,1749523838737,-490.0,0.00016438,2]
[365182651,1749523838747,-474.76614494,0.00016438,2]
[365182652,1749523838756,-488.17302025,0.00016438,2]
[365182653,1749523838766,-478.45252281,0.00016438,2]
[365182654,1749523838775,-490.0,0.00016438,2]
[365182655,1749523838785,-500.0,0.00016438,2]
[365182656,1749523838794,-500.0,0.00016438,2]
[365182657,1749523838803,-490.0,0.00016438,2]
[365182658,1749523838812,-500.0,0.00016438,2]
[365182659,1749523838821,-475.80481054,0.00016438,2]
[365182660,1749523838831,-490.0,0.00016438,2]
[365182661,1749523838840,-490.0,0.00016438,2]
[365182662,1749523838849,-270.69711576,0.00016438,2]
[365182663,1749523838858,-463.98359096,0.00016438,2]
[365182664,1749523838868,-151.0,0.00016438,2]
[365182665,1749523838877,-151.0,0.00016438,2]
[365182666,1749523838887,-151.0,0.00016438,2]
[365182667,1749523838895,-476.30057703,0.00016438,2]
[365182668,1749523838905,-151.0,0.00016438,2]
[365182669,1749523838917,-151.0,0.00016438,2]
[365182670,1749523838927,-151.0,0.00016438,2]
[365182671,1749523838935,-170.910262,0.00016438,2]
[365182672,1749523838945,-490.0,0.00016438,2]
[365182673,1749523838954,-472.44068413,0.00016438,2]
[365182674,1749523838963,-490.0,0.00016438,2]
[365182675,1749523838972,-490.0,0.00016438,2]
[365182676,1749523838981,-490.0,0.00016438,2]
[365182677,1749523838991,-213.006317,0.00016438,2]
[365182678,1749523839000,-308.08028095,0.00016438,2]
[365182679,1749523839010,-213.006317,0.00016438,2]
[365182680,1749523839019,-213.006317,0.00016438,2]
[365182681,1749523839029,-494.33673077,0.00016438,2]
[365182682,1749523839038,-213.006317,0.00016438,2]
[365182683,1749523839047,-213.006317,0.00016438,2]
[365182684,1749523839056,-213.006317,0.00016438,2]
[365182685,1749523839065,-213.006317,0.00016438,2]
[365182686,1749523839075,-310.93619386,0.00016438,2]
[365182687,1749523839084,-213.006317,0.00016438,2]
[365182688,1749523839093,-213.006317,0.00016438,2]
[365182689,1749523839103,-230.69850333,0.00016438,2]
[365182690,1749523839112,-213.006317,0.00016438,2]
[365182691,1749523839122,-213.006317,0.00016438,2]
[365182692,1749523839131,-213.006317,0.00016438,2]
[365182693,1749523839141,-213.006317,0.00016438,2]
[365182694,1749523839150,-213.006317,0.00016438,2]
[365182695,1749523839160,-475.44898012,0.00016438,2]
[365182696,1749523839169,-213.006317,0.00016438,2]
[365182697,1749523839178,-490.0,0.00016438,2]
[365182698,1749523839187,-213.006317,0.00016438,2]
[365182699,1749523839194,-490.0,0.00016438,2]
[365182700,1749523839203,-484.71091975,0.00016438,2]
[365182701,1749523839215,-151.0,0.00016438,2]
[365182702,1749523839225,-151.0,0.00016438,2]
[365182703,1749523839233,-490.0,0.00016438,2]
[365182704,1749523839244,-151.0,0.00016438,2]
[365182705,1749523839253,-151.0,0.00016438,2]
[365182706,1749523839262,-151.0,0.00016438,2]
[365182707,1749523839272,-151.0,0.00016438,2]
[365182708,1749523839282,-490.0,0.00016438,2]
[365182709,1749523839291,-300.949049,0.00016438,2]
[365182710,1749523839300,-490.0,0.00016438,2]
[365182711,1749523839309,-172.715266,0.00016438,2]
[365182712,1749523839317,-490.0,0.00016438,2]
[365182713,1749523839327,-172.715266,0.00016438,2]
[365182714,1749523839336,-473.42883518,0.00016438,2]
[365182715,1749523839346,-172.715266,0.00016438,2]
[365182716,1749523839355,-172.715266,0.00016438,2]
[365182717,1749523839365,-172.715266,0.00016438,2]
[365182718,1749523839374,-172.715266,0.00016438,2]
[365182719,1749523839384,-172.715266,0.00016438,2]
[365182720,1749523839394,-477.67368518,0.00016438,2]
[365182721,1749523839403,-490.0,0.00016438,2]
[365182722,1749523839412,-172.61485634,0.00016438,2]
[365182723,1749523839421,-490.0,0.00016438,2]
[365182724,1749523839431,-490.0,0.00016438,2]
[365182725,1749523839440,-490.0,0.00016438,2]
[365182726,1749523839449,-477.12247492,0.00016438,2]
[365182727,1749523839458,-472.14644869,0.00016438,2]
[365182728,1749523839467,-490.0,0.00016438,2]
[365182729,1749523839476,-474.43526165,0.00016438,2]
[365182730,1749523839485,-466.26209061,0.00016438,2]
[365182731,1749523839495,-490.0,0.00016438,2]
[365182732,1749523839504,-485.54992716,0.00016438,2]
[365182733,1749523839513,-151.0,0.00016438,2]
[365182734,1749523839522,-168.68255,0.00016438,2]
[365182735,1749523839532,-467.17342978,0.00016438,2]
[365182736,1749523839542,-490.0,0.00016438,2]
[365182737,1749523839552,-460.0,0.00016438,2]
[365182738,1749523839561,-490.0,0.00016438,2]
[365182739,1749523839571,-490.0,0.00016438,2]
[365182740,1749523839580,-490.0,0.00016438,2]
[365182741,1749523839590,-480.18475088,0.00016438,2]
[365182742,1749523839599,-500.0,0.00016438,2]
[365182743,1749523839609,-500.0,0.00016438,2]
[365182744,1749523839618,-500.0,0.00016438,2]
[365182745,1749523839627,-474.97659334,0.00016438,2]
[365182746,1749523839637,-310.01689274,0.00016438,2]
[365182747,1749523839646,-490.0,0.00016438,2]
[365182748,1749523839656,-490.0,0.00016438,2]
[365182749,1749523839665,-485.34335649,0.00016438,2]
[365182750,1749523839675,-463.60697304,0.00016438,2]
[365182751,1749523839684,-153.683537,0.00016438,2]
[365182752,1749523839694,-151.0,0.00016438,2]
[365182753,1749523839703,-151.0,0.00016438,2]
[365182754,1749523839712,-151.0,0.00016438,2]
[365182755,1749523839721,-151.0,0.00016438,2]
[365182756,1749523839730,-151.0,0.00016438,2]
[365182757,1749523839740,-451.69752365,0.00016438,2]
[365182758,1749523839749,-151.0,0.00016438,2]
[365182759,1749523839759,-490.0,0.00016438,2]
[365182760,1749523839768,-151.0,0.00016438,2]
[365182761,1749523839777,-151.0,0.00016438,2]
[365182762,1749523839786,-500.0,0.00016438,2]
[365182763,1749523839795,-629.29191205,0.00016438,2]
[365182764,1749523839804,-151.0,0.00016438,2]
[365182765,1749523839814,-151.0,0.00016438,2]
[365182766,1749523839823,-207.150958,0.00016438,2]
[365182767,1749523839832,-478.95949091,0.00016438,2]
[365182768,1749523839841,-490.0,0.00016438,2]
[365182769,1749523839850,-490.0,0.00016438,2]
[365182770,1749523839860,-431.15575726,0.00016438,2]
[365182771,1749523839870,-311.6657534,0.00016438,2]
[365182772,1749523839879,-494.72034565,0.00016438,2]
[365182773,1749523839888,-490.0,0.00016438,2]
[365182774,1749523839898,-490.0,0.00016438,2]
[365182775,1749523839907,-490.0,0.00016438,2]
[365182776,1749523839916,-153.035233,0.00016438,2]
[365182777,1749523839925,-490.0,0.00016438,2]
[365182778,1749523839935,-151.0,0.00016438,2]
[365182779,1749523839944,-151.0,0.00016438,2]
[365182780,1749523839953,-490.0,0.00016438,2]
[365182781,1749523839962,-151.0,0.00016438,2]
[365182782,1749523839972,-151.0,0.00016438,2]
[365182783,1749523839981,-490.0,0.00016438,2]
[365182784,1749523839993,-151.0,0.00016438,2]
[365182785,1749523840003,-151.0,0.00016438,2]
[365182786,1749523840013,-154.258028,0.00016438,2]
[365182787,1749523840022,-490.0,0.00016438,2]
[365182788,1749523840032,-151.0,0.00016438,2]
[365182789,1749523840041,-151.0,0.00016438,2]
[365182790,1749523840050,-151.0,0.00016438,2]
[365182791,1749523840059,-481.47938167,0.00016438,2]
[365182792,1749523840068,-490.0,0.00016438,2]
[365182793,1749523840078,-490.0,0.00016438,2]
[365182794,1749523840087,-224.414264,0.00016438,2]
[365182795,1749523840096,-490.0,0.00016438,2]
[365182796,1749523840106,-480.01083015,0.00016438,2]
[365182797,1749523840115,-490.0,0.00016438,2]
[365182798,1749523840125,-490.0,0.00016438,2]
[365182799,1749523840134,-487.90521996,0.00016438,2]
[365182800,1749523840143,-490.0,0.00016438,2]
[365182801,1749523840153,-490.0,0.00016438,2]
[365182802,1749523840162,-490.0,0.00016438,2]
[365182803,1749523840172,-467.00031382,0.00016438,2]
[365182804,1749523840181,-483.75077852,0.00016438,2]
[365182805,1749523840191,-479.20633306,0.00016438,2]
[365182806,1749523840200,-490.0,0.00016438,2]
[365182807,1749523840210,-490.0,0.00016438,2]
[365182808,1749523840224,-474.04986023,0.00016438,2]
[365182809,1749523840233,-485.34621903,0.00016438,2]
[365182810,1749523840242,-490.0,0.00016438,2]
[365182812,1749523840251,-490.0,0.00016438,2]
[365182814,1749523840261,-490.0,0.00016438,2]
[365182816,1749523840269,-486.84008684,0.00016438,2]
[365182817,1749523840279,-490.0,0.00016438,2]
[365182818,1749523840287,-490.0,0.00016438,2]
[365182819,1749523840297,-152.233685,0.00016438,2]
[365182820,1749523840305,-486.35733652,0.00016438,2]
[365182821,1749523840314,-490.0,0.00016438,2]
[365182822,1749523840323,-490.0,0.00016438,2]
[365182823,1749523840332,-490.0,0.00016438,2]
[365182824,1749523840342,-462.63109361,0.00016438,2]
[365182825,1749523840351,-486.02289526,0.00016438,2]
[365182826,1749523840360,-490.0,0.00016438,2]
[365182827,1749523840369,-490.0,0.00016438,2]
[365182828,1749523840379,-490.0,0.00016438,2]
[365182829,1749523840388,-490.0,0.00016438,2]
[365182830,1749523840397,-486.34227219,0.00016438,2]
[365182831,1749523840406,-467.49054781,0.00016438,2]
[365182832,1749523840415,-460.0,0.00016438,2]
[365182833,1749523840424,-490.0,0.00016438,2]
[365182834,1749523840433,-430.88549026,0.00016438,2]
[365182835,1749523840442,-490.0,0.00016438,2]
[365182836,1749523840451,-490.0,0.00016438,2]
[365182837,1749523840460,-460.0,0.00016438,2]
[365182838,1749523840470,-151.0,0.00016438,2]
[365182839,1749523840479,-151.760902,0.00016438,2]
[365182840,1749523840489,-490.0,0.00016438,2]
[365182841,1749523840498,-490.0,0.00016438,2]
[365182842,1749523840508,-484.83834547,0.00016438,2]
[365182843,1749523840517,-462.48772966,0.00016438,2]
[365182844,1749523840527,-560.86068941,0.00016438,2]
[365182845,1749523840536,-472.66087188,0.00016438,2]
[365182846,1749523840545,-490.0,0.00016438,2]
[365182847,1749523840555,-490.0,0.00016438,2]
[365182848,1749523840564,-490.0,0.00016438,2]
[365182849,1749523840573,-490.0,0.00016438,2]
[365182850,1749523840582,-466.69053385,0.00016438,2]
[365182851,1749523840591,-238.97121459,0.00016438,2]
[365182852,1749523840600,-460.0,0.00016438,2]
[365182853,1749523840609,-490.0,0.00016438,2]
[365182854,1749523840619,-1013.95779723,0.00016438,2]
[365182855,1749523840628,-480.0,0.00016438,2]
[365182856,1749523840637,-490.0,0.00016438,2]
[365182857,1749523840647,-428.89060343,0.00016438,2]
[365182858,1749523840656,-443.1255229,0.00016438,2]
[365182859,1749523840665,-490.0,0.00016438,2]
[365182860,1749523840674,-483.85222809,0.00016438,2]
[365182861,1749523840684,-490.0,0.00016438,2]
[365182862,1749523840693,-460.0,0.00016438,2]
[365182863,1749523840703,-490.0,0.00016438,2]
[365182864,1749523840712,-460.0,0.00016438,2]
[365182865,1749523840721,-490.0,0.00016438,2]
[365182866,1749523840730,-151.0,0.00016438,2]
[365182867,1749523840740,-490.0,0.00016438,2]
[365182868,1749523840750,-151.0,0.00016438,2]
[365182869,1749523840759,-482.34645704,0.00016438,2]
[365182870,1749523840769,-490.0,0.00016438,2]
[365182871,1749523840777,-161.248405,0.00016438,2]
[365182872,1749523840787,-632.21,0.00016438,2]
[365182873,1749523840797,-480.34375636,0.00016438,2]
[365182874,1749523840806,-461.01864059,0.00016438,2]
[365182875,1749523840815,-573.95,0.00016438,2]
[365182876,1749523840824,-463.4818233,0.00016438,2]
[365182877,1749523840834,-479.64677365,0.00016438,2]
[365182878,1749523840843,-299.84068877,0.00016438,2]
[365182879,1749523840852,-490.0,0.00016438,2]
[365182880,1749523840862,-437.48803604,0.00016438,2]
[365182881,1749523840871,-475.13029613,0.00016438,2]
[365182882,1749523840880,-151.0,0.00016438,2]
[365182883,1749523840889,-470.96469042,0.00016438,2]
[365182884,1749523840898,-151.0,0.00016438,2]
[365182885,1749523840907,-490.0,0.00016438,2]
[365182886,1749523840923,-151.0,0.00016438,2]
[365182887,1749523840936,-490.0,0.00016438,2]